bitfinex-derivatives/quotes_SOLF0:USTF0_20251117
["timestamp","ask_amount","ask_price","bid_price","bid_amount"]
[1763402988627,0.05201007,132.63,132.6,3.55418127]
[1763402989732,0.05201007,132.63,132.6,0.05418127]
[1763402990226,3.54201007,132.63,132.6,0.05418127]
[1763402993132,0.05201007,132.63,132.6,3.55418127]
[1763402993628,3.54201007,132.63,132.6,0.05418127]
[1763402994633,3.49,132.61,132.6,0.05418127]
[1763402995533,3.49,132.62,132.6,0.05418127]
[1763402996027,3.49,132.62,132.6,0.00418127]
[1763402996226,3.49,132.6,132.56,9.38]
[1763402996431,3.49,132.59,132.56,9.38]
[1763402997130,3.49,132.57,132.56,9.43458668]
[1763402997726,9.05112249,132.57,132.56,9.43458668]
[1763402997926,3.49,132.57,132.56,9.43458668]
[1763402998535,3.5470954,132.59,132.56,9.43458668]
[1763402998830,0.0570954,132.59,132.57,10.2948]
[1763402999636,0.0570954,132.59,132.58,3.5]
[1763402999931,0.0570954,132.59,132.57,10.2948]
[1763403000129,0.0570954,132.59,132.56,9.43458668]
[1763403000328,3.5470954,132.59,132.56,9.43458668]
[1763403000529,0.0570954,132.59,132.56,9.43458668]
[1763403000731,0.0570954,132.59,132.57,3.5]
[1763403001329,0.0570954,132.59,132.58,10.2944]
[1763403001637,5.56112249,132.67,132.59,3.5]
[1763403001825,3.49,132.69,132.64,3.5]
[1763403002027,3.49,132.69,132.61,3.5]
[1763403002431,21.9175558,132.75,132.61,3.5]
[1763403002432,5.60044678,132.68,132.61,3.5]
[1763403002630,3.28,132.7,132.61,3.5]
[1763403002838,3.28,132.66,132.64,0.054122]
[1763403003039,0.04982036,132.67,132.64,0.054122]
[1763403003040,8.88147521,132.65,132.64,0.054122]
[1763403003332,3.28,132.65,132.64,0.054122]
[1763403003636,0.04982036,132.67,132.64,3.444122]
[1763403004037,0.04982036,132.67,132.66,3.39]
[1763403004238,0.04982036,132.67,132.64,3.444122]
[1763403004529,5.60147521,132.75,132.66,3.39]
[1763403004736,3.28,132.79,132.66,3.39]
[1763403004737,8.88147521,132.77,132.66,3.39]
[1763403004930,6.72860399,132.79,132.66,3.39]
[1763403004931,3.28,132.75,132.66,3.39]
[1763403005127,8.88147521,132.74,132.66,3.39]
[1763403005327,3.28,132.74,132.66,3.39]
[1763403005533,0.02128458,132.71,132.69,3.44024481]
[1763403005829,0.02128458,132.71,132.69,0.05024481]
[1763403006142,0.02128458,132.71,132.69,10.22874481]
[1763403006549,0.02128458,132.71,132.69,3.44024481]
[1763403007235,0.02128458,132.71,132.7,3.39]
[1763403008140,0.00128458,132.71,132.7,3.39]
[1763403008335,5.61222271,132.8,132.71,3.39]
[1763403008534,10.00860399,132.82,132.71,3.39]
[1763403008535,5.61222271,132.79,132.72,3.39]
[1763403008739,5.61222271,132.82,132.77,6.7844]
[1763403009044,6.72860399,132.86,132.74,3.39]
[1763403009045,8.89222271,132.84,132.74,3.39]
[1763403009342,3.28,132.84,132.78,3.43970098]
[1763403009547,8.89828841,132.83,132.78,3.43970098]
[1763403009741,3.28,132.83,132.79,0.05176933]
[1763403009945,5.61828841,132.85,132.79,3.44176933]
[1763403010641,5.61828841,132.85,132.79,10.22516933]
[1763403010942,5.61828841,132.85,132.79,3.44176933]
[1763403011443,3.28,132.86,132.79,3.44176933]
[1763403011641,5.61828841,132.88,132.84,3.39]
[1763403011836,8.89828841,132.89,132.85,0.05638102]
[1763403012035,8.89828841,132.89,132.81,3.39]
[1763403012036,3.28,132.89,132.86,0.05122725]
[1763403012351,5.61828841,132.9,132.86,3.44122725]
[1763403012532,5.61828841,132.92,132.86,3.39]
[1763403012843,13.0698185,132.98,132.87,0.05765272]
[1763403012844,3.28,132.9,132.87,0.05765272]
[1763403013033,3.28,132.88,132.87,0.05765272]
[1763403013236,3.28,132.88,132.82,3.39]
[1763403013740,8.89828841,132.92,132.82,3.39]
[1763403014045,5.61828841,132.91,132.82,3.39]
[1763403014239,0.0483058,132.88,132.85,0.05764357]
[1763403014440,0.0483058,132.88,132.86,3.39]
[1763403015441,5.61828841,132.95,132.87,3.39]
[1763403015640,3.28,132.97,132.87,3.39]
[1763403015641,5.61828841,132.96,132.87,3.39]
[1763403015838,3.28,132.97,132.87,3.39]
[1763403016542,8.89828841,132.96,132.91,0.05543898]
[1763403016740,3.28,132.94,132.92,0.05249641]
[1763403016943,3.28,132.94,132.92,0.05663695]
[1763403018038,3.28,132.94,132.86,3.39]
[1763403018247,3.28,132.94,132.82,43.85]
[1763403018548,3.25,132.93,132.84,3.17]
[1763403018944,3.25,132.89,132.87,0.05413741]
[1763403019444,3.25,132.89,132.82,40.68]
[1763403020344,3.25,132.92,132.83,3.17]
[1763403020547,3.30787929,132.89,132.86,0.04904134]
[1763403020746,3.30009721,132.89,132.86,0.0510778]
[1763403022440,0.05009721,132.89,132.86,3.2210778]
[1763403022856,3.25,132.93,132.86,3.2210778]
[1763403023149,295.0,132.99,132.88,3.17]
[1763403023348,5.54409808,132.98,132.88,3.17]
[1763403023552,3.25,132.98,132.88,3.17]
[1763403023854,3.30666002,132.94,132.92,0.05019887]
[1763403024147,0.04820733,132.94,132.92,3.22608131]
[1763403025237,3.25,133.08,132.94,3.17]
[1763403025441,3.25,133.05,132.97,6.7742]
[1763403025639,3.25,133.05,132.97,3.17]
[1763403026253,3.25,133.05,133.0,0.04956753]
[1763403026453,3.25,133.04,132.91,48.9527877]
[1763403026750,3.25,133.01,132.91,47.4173]
[1763403026951,3.25,133.0,132.91,47.4173]
[1763403027160,3.25,133.0,132.91,43.81]
[1763403027448,0.05762926,132.97,132.94,3.22157134]
[1763403027662,3.25,133.04,132.94,3.22157134]
[1763403027842,3.25,133.04,132.94,3.17]
[1763403028046,3.25,133.04,132.91,40.64]
[1763403028047,3.25,133.04,132.96,9.9448]
[1763403028246,3.25,133.04,132.96,3.17]
[1763403028750,3.25,133.04,132.99,3.22104868]
[1763403029358,3.25,133.04,132.99,0.05104868]
[1763403029653,3.25,133.03,132.99,0.05104868]
[1763403031448,3.25,133.06,132.99,3.22104868]
[1763403031644,3.25,133.06,133.01,0.04999488]
[1763403034653,3.25,133.06,133.01,3.23999488]
[1763403034860,3.42,133.08,133.01,3.23999488]
[1763403035047,3.42,133.08,132.97,17.7627877]
[1763403035048,3.42,133.08,133.03,10.01115555]
[1763403035250,3.10058368,133.15,133.03,6.82115555]
[1763403035251,3.42,133.11,133.03,6.82115555]
[1763403035447,3.42,133.11,133.06,0.05071645]
[1763403035652,3.42,133.1,132.97,12.64]
[1763403035954,3.42,133.07,132.97,12.64]
[1763403036260,3.42,133.07,132.97,19.4143]
[1763403036563,3.42,133.09,132.98,3.19]
[1763403036764,0.05659107,133.05,133.02,3.24756296]
[1763403037758,0.05659107,133.05,133.02,0.05756296]
[1763403038059,0.05659107,133.05,133.02,3.24756296]
[1763403038565,6.52058368,133.15,133.05,3.19]
[1763403039256,3.42,133.14,133.06,3.19]
[1763403039455,3.42,133.14,133.09,0.05189665]
[1763403040059,3.10058368,133.15,133.09,3.24189665]
[1763403040455,6.52058368,133.15,133.09,0.05189665]
[1763403043262,3.42,133.14,133.09,0.05189665]
[1763403043661,3.42,133.12,133.02,9.76]
[1763403043868,3.42,133.09,133.02,9.76]
[1763403044066,3.42,133.08,133.02,9.76]
[1763403044663,3.42,133.08,133.04,0.05472924]
[1763403044664,0.05354496,133.06,133.04,0.05472924]
[1763403044867,3.47354496,133.06,133.04,0.05472924]
[1763403045369,3.42,133.05,132.97,12.64]
[1763403046062,3.42,133.05,132.97,9.45]
[1763403046260,3.42,133.01,132.97,9.45]
[1763403046471,3.42,133.0,132.97,9.45]
[1763403047267,3.42,133.0,132.97,9.49763149]
[1763403047467,3.46860128,133.02,132.97,12.68763149]
[1763403047668,0.04860128,133.02,132.98,3.19]
[1763403048061,3.46860128,133.02,132.97,12.68763149]
[1763403048257,0.04860128,133.02,132.98,3.19]
[1763403048456,0.04860128,133.02,132.98,9.9637]
[1763403048672,0.04860128,133.02,132.98,3.19]
[1763403050163,0.04860128,133.02,132.97,9.49763149]
[1763403050377,3.46860128,133.02,132.97,9.49763149]
[1763403050673,5.50642637,133.01,132.97,9.49763149]
[1763403050865,3.46860128,133.02,132.97,9.49763149]
[1763403051173,5.50513851,133.01,132.97,12.68763149]
[1763403051376,5.51174874,133.0,132.97,12.68763149]
[1763403051668,3.46860128,133.02,132.97,12.68763149]
[1763403051873,5.51224481,133.01,132.98,3.19]
[1763403052076,0.04860128,133.02,132.98,3.19]
[1763403052267,5.52059416,133.01,132.98,3.19]
[1763403052468,5.52059416,133.0,132.97,9.49763149]
[1763403052676,5.52059416,132.99,132.97,9.49763149]
[1763403052972,5.52059416,132.98,132.97,9.49763149]
[1763403053368,8.94059416,132.98,132.97,9.49763149]
[1763403053565,5.52059416,132.98,132.97,9.49763149]
[1763403053765,8.94059416,132.98,132.97,9.49763149]
[1763403053971,8.94059416,132.98,132.97,7.05867436]
[1763403055063,15.66919815,132.98,132.97,3.16743257]
[1763403055768,2.41,132.97,132.88,98.5527877]
[1763403055973,6.79199691,132.95,132.88,90.24]
[1763403056274,6.79199691,132.95,132.87,12.38]
[1763403056275,14.72259107,132.94,132.87,12.38]
[1763403056579,5.52059416,132.93,132.87,12.38]
[1763403056771,0.05100688,132.91,132.89,0.05035892]
[1763403056975,5.52059416,132.9,132.89,3.24035892]
[1763403058081,6.79199691,132.95,132.9,3.19]
[1763403058378,6.79199691,132.96,132.9,3.19]
[1763403058774,6.79199691,132.97,132.9,3.19]
[1763403059278,2.41,132.98,132.92,0.05238641]
[1763403059279,0.05616276,132.95,132.92,0.05238641]
[1763403059477,0.05616276,132.95,132.92,3.24238641]
[1763403059677,0.05616276,132.95,132.92,11.55517411]
[1763403059879,0.05616276,132.95,132.94,3.19]
[1763403060078,0.05616276,132.95,132.92,3.24238641]
[1763403060282,10.26815967,132.95,132.92,0.05238641]
[1763403060479,6.79199691,132.93,132.92,0.05238641]
[1763403060680,0.05616276,132.95,132.92,3.24238641]
[1763403061875,3.47616276,132.95,132.92,0.05238641]
[1763403062077,10.21199691,132.93,132.86,9.76]
[1763403062281,10.21199691,132.92,132.86,9.76]
[1763403062482,3.42,132.92,132.86,9.76]
[1763403062884,10.21199691,132.92,132.86,9.76]
[1763403063080,3.47,132.89,132.88,0.05215507]
[1763403063583,3.47,132.89,132.86,9.76]
[1763403063789,0.05417423,132.9,132.86,7.21521369]
[1763403063790,3.47,132.87,132.86,7.21521369]
[1763403064482,3.47,132.89,132.86,7.21521369]
[1763403065090,3.47,132.88,132.86,7.21521369]
[1763403066189,3.47,132.87,132.86,7.21521369]
[1763403066380,3.47,132.89,132.86,7.21521369]
[1763403068892,0.05417423,132.9,132.86,7.21521369]
[1763403069085,3.52417423,132.9,132.86,7.21521369]
[1763403070084,8.973145,132.89,132.86,7.21521369]
[1763403070587,3.47,132.88,132.86,7.21521369]
[1763403071287,3.47,132.88,132.85,0.0487221]
[1763403071288,8.973145,132.87,132.85,0.0487221]
[1763403071495,5.503145,132.86,132.77,10.21]
[1763403071794,5.503145,132.85,132.77,13.43]
[1763403071991,5.503145,132.88,132.77,20.2145]
[1763403072292,30.9227877,132.89,132.77,20.2145]
[1763403072293,5.503145,132.87,132.77,20.2145]
[1763403072489,0.05571081,132.83,132.81,0.05762784]
[1763403072697,0.05709946,132.83,132.81,0.05622717]
[1763403073190,0.05709946,132.83,132.81,3.27622717]
[1763403074495,0.05709946,132.83,132.81,0.05622717]
[1763403075189,0.05709946,132.83,132.77,10.21]
[1763403075190,1.55709946,132.83,132.77,10.21]
[1763403075388,8.36988716,132.83,132.77,10.21]
[1763403075585,13.87303216,132.83,132.77,10.21]
[1763403075798,5.503145,132.82,132.77,10.21]
[1763403075995,8.36988716,132.83,132.77,10.21]
[1763403076197,13.87303216,132.83,132.79,0.04862976]
[1763403076411,5.503145,132.82,132.79,0.04862976]
[1763403077103,8.36988716,132.83,132.79,0.04862976]
[1763403077594,5.56024446,132.83,132.79,0.04862976]
[1763403077907,0.05709946,132.83,132.79,0.04862976]
[1763403079503,0.05709946,132.83,132.79,3.38862976]
[1763403079697,19.83728753,132.93,132.79,4.88862976]
[1763403079900,5.4718975,132.92,132.8,3.34]
[1763403080098,5.4718975,132.95,132.84,3.34]
[1763403080305,5.4718975,132.94,132.84,3.34]
[1763403080515,5.4718975,132.95,132.84,3.34]
[1763403080719,0.04795926,132.91,132.88,0.05276472]
[1763403080919,0.04795926,132.91,132.84,3.34]
[1763403081115,0.04795926,132.91,132.88,0.05338254]
[1763403081414,0.05164034,132.91,132.88,0.04798469]
[1763403081821,5.52353784,132.91,132.88,0.04798469]
[1763403082020,0.05164034,132.91,132.88,0.04798469]
[1763403082210,5.52353784,132.91,132.8,3.34]
[1763403082409,35.65529062,132.93,132.8,3.34]
[1763403082410,28.0818975,132.92,132.8,3.34]
[1763403082620,28.0818975,132.91,132.8,3.34]
[1763403082818,28.0818975,132.9,132.8,3.34]
[1763403083008,5.4718975,132.89,132.8,3.34]
[1763403083416,22.61,132.9,132.83,0.05686476]
[1763403083417,0.04971274,132.86,132.83,0.05686476]
[1763403083919,5.4718975,132.85,132.83,0.05686476]
[1763403084127,5.4718975,132.85,132.77,10.21]
[1763403084314,5.4718975,132.84,132.77,10.21]
[1763403084511,5.4718975,132.86,132.77,10.21]
[1763403084714,5.4718975,132.85,132.77,10.21]
[1763403085022,5.4718975,132.84,132.77,10.21]
[1763403085216,0.05040299,132.82,132.8,0.05340761]
[1763403085414,5.52230049,132.82,132.8,0.05340761]
[1763403085620,0.05040299,132.82,132.8,0.05340761]
[1763403085816,5.4718975,132.81,132.77,10.21]
[1763403086017,5.4718975,132.8,132.77,10.21]
[1763403086221,5.4718975,132.81,132.77,10.21]
[1763403086517,5.4718975,132.8,132.77,10.21]
[1763403086820,5.4718975,132.81,132.77,10.26766061]
[1763403087016,5.4718975,132.8,132.77,10.26766061]
[1763403087220,5.4718975,132.79,132.77,10.26766061]
[1763403087418,0.04799037,132.79,132.77,10.26766061]
[1763403088019,5.51988787,132.79,132.77,10.26766061]
[1763403088224,5.4718975,132.78,132.77,10.26766061]
[1763403090024,5.4718975,132.78,132.77,8.62222947]
[1763403090226,12.26389441,132.78,132.77,0.05766061]
[1763403090415,12.26389441,132.78,132.54,105.722]
[1763403090416,6.9718975,132.78,132.68,3.34]
[1763403090619,12.22803387,132.77,132.68,3.34]
[1763403090922,12.22803387,132.76,132.68,3.34]
[1763403091229,12.22803387,132.75,132.68,3.34]
[1763403091517,12.22803387,132.75,132.73,0.05641521]
[1763403092126,5.4718975,132.75,132.73,0.05641521]
[1763403093323,5.4718975,132.75,132.74,5.67]
[1763403094328,18.51718812,132.75,132.65,3.5]
[1763403094519,6.74876486,132.73,132.65,3.5]
[1763403094725,12.22066236,132.72,132.65,3.5]
[1763403095027,5.4718975,132.71,132.65,3.5]
[1763403095321,0.05151609,132.69,132.65,3.5]
[1763403095525,0.00151609,132.69,132.67,3.54776747]
[1763403095734,6.74876486,132.76,132.67,3.5]
[1763403096429,6.74876486,132.77,132.67,3.5]
[1763403096626,0.05351199,132.73,132.71,0.05205212]
[1763403096829,0.05351199,132.73,132.71,0.05530235]
[1763403096830,0.05553179,132.73,132.71,0.05530235]
[1763403098436,6.76191568,132.72,132.64,4.6]
[1763403098645,6.75863829,132.68,132.64,4.6]
[1763403098934,6.75863829,132.67,132.64,4.6]
[1763403099628,6.80773858,132.67,132.64,4.6533076]
[1763403100520,6.75863829,132.66,132.64,4.6533076]
[1763403100928,6.80773858,132.67,132.64,4.6533076]
[1763403101228,6.75863829,132.65,132.64,4.6533076]
[1763403101434,6.75863829,132.66,132.64,4.6533076]
[1763403101833,0.04910029,132.67,132.64,4.6533076]
[1763403102535,0.04910029,132.67,132.65,3.5]
[1763403102832,6.75863829,132.72,132.65,3.5]
[1763403103427,13.04529062,132.76,132.65,3.5]
[1763403103428,6.75863829,132.71,132.65,3.5]
[1763403103634,6.75863829,132.71,132.64,4.6]
[1763403103832,0.05294639,132.69,132.66,0.05197475]
[1763403104037,0.05294639,132.69,132.66,3.55197475]
[1763403104630,0.05294639,132.69,132.66,0.05197475]
[1763403105524,0.05294639,132.69,132.66,3.55197475]
[1763403106136,0.05294639,132.69,132.66,0.05197475]
[1763403106329,0.05294639,132.69,132.66,3.55197475]
[1763403106528,0.05294639,132.69,132.66,0.05197475]
[1763403107636,5.45758728,132.68,132.66,0.05197475]
[1763403107837,5.45758728,132.67,132.66,0.05197475]
[1763403108029,5.45758728,132.67,132.66,3.55197475]
[1763403108230,0.05294639,132.69,132.66,5.05197475]
[1763403108529,0.05294639,132.69,132.67,3.5]
[1763403108837,0.05294639,132.69,132.66,0.05197475]
[1763403109838,0.05294639,132.69,132.66,3.55197475]
[1763403110926,0.05294639,132.69,132.66,0.05197475]
[1763403112847,6.81158468,132.69,132.64,4.6]
[1763403113134,6.81158468,132.69,132.64,2.19502531]
[1763403113135,6.75863829,132.65,132.64,2.19502531]
[1763403113332,6.75863829,132.65,132.6,8.23]
[1763403113333,13.04529062,132.65,132.6,8.23]
[1763403113534,6.76139114,132.64,132.6,8.23]
[1763403113734,29.37139114,132.64,132.6,8.23]
[1763403113949,6.81528124,132.63,132.61,0.05695235]
[1763403114330,0.0538901,132.63,132.61,0.05695235]
[1763403115333,6.81528124,132.63,132.61,0.05695235]
[1763403115640,0.0538901,132.63,132.61,0.05695235]
[1763403116437,0.0538901,132.63,132.54,6.56]
[1763403116438,13.04529062,132.58,132.54,6.56]
[1763403116744,6.75480827,132.57,132.54,6.56]
[1763403117340,0.05525548,132.57,132.54,6.60792163]
[1763403118746,0.05525548,132.57,132.54,10.10792163]
[1763403118945,6.81006375,132.57,132.54,6.60792163]
[1763403119152,0.05525548,132.57,132.54,6.60792163]
[1763403119335,6.81006375,132.57,132.54,6.60792163]
[1763403119646,0.05525548,132.57,132.54,6.60792163]
[1763403120241,5.60376997,132.56,132.55,3.5]
[1763403120440,3.09890664,132.56,132.55,5.0]
[1763403120942,0.05525548,132.57,132.56,3.5]
[1763403121142,6.75480827,132.62,132.56,3.5]
[1763403121339,13.21579172,132.68,132.56,3.5]
[1763403121340,6.75480827,132.63,132.56,3.5]
[1763403121539,6.75480827,132.62,132.54,6.56]
[1763403121738,6.75480827,132.61,132.54,10.06]
[1763403121939,35.65529062,132.65,132.54,6.56]
[1763403121940,6.75480827,132.59,132.54,6.56]
[1763403122140,6.75480827,132.56,132.54,6.56]
[1763403122341,6.74691335,132.56,132.55,0.05347583]
[1763403123342,13.09443068,132.58,132.56,3.45]
[1763403123343,0.04914006,132.58,132.56,3.45]
[1763403124655,0.04914006,132.58,132.55,0.05347583]
[1763403125650,22.61,132.57,132.55,0.05347583]
[1763403125849,31.61641102,132.57,132.54,4.15301689]
[1763403126346,9.00641102,132.57,132.54,4.15301689]
[1763403126541,9.05555108,132.58,132.54,4.15301689]
[1763403126845,0.04914006,132.58,132.55,0.05426908]
[1763403127054,0.04914006,132.58,132.55,3.50426908]
[1763403128244,0.04914006,132.58,132.55,0.05426908]
[1763403128954,9.00641102,132.56,132.55,0.05426908]
[1763403129340,9.02618256,132.56,132.55,0.05426908]
[1763403129844,41.15320633,132.58,132.54,4.15301689]
[1763403130034,9.0329226,132.55,132.54,4.15301689]
[1763403130238,13.26493178,132.58,132.54,4.15301689]
[1763403130239,9.0329226,132.56,132.54,4.15301689]
[1763403130434,9.0329226,132.55,132.54,4.15301689]
[1763403131047,22.07821322,132.56,132.54,4.15301689]
[1763403131544,13.04529062,132.56,132.54,4.15301689]
[1763403131749,9.08206266,132.58,132.54,4.15301689]
[1763403132048,0.04914006,132.58,132.54,4.15301689]
[1763403132846,5.59334951,132.57,132.54,4.15301689]
[1763403133149,5.59334951,132.56,132.54,4.15301689]
[1763403133349,9.08206266,132.58,132.54,4.15301689]
[1763403133350,5.59334951,132.55,132.54,4.15301689]
[1763403134242,14.6350215,132.55,132.54,4.15301689]
[1763403134548,5.59334951,132.55,132.54,4.15301689]
[1763403135247,7.09334951,132.55,132.53,0.05050172]
[1763403135448,31.85443185,132.54,132.44,10.03]
[1763403135653,9.04576851,132.47,132.44,6.58]
[1763403135841,5.59334951,132.46,132.44,6.58]
[1763403136050,5.59334951,132.45,132.44,3.45]
[1763403136248,9.04576851,132.51,132.44,3.45]
[1763403136458,0.38480693,132.49,132.44,3.45]
[1763403136750,0.05480693,132.49,132.44,3.45]
[1763403137248,0.05480693,132.49,132.36,13.04529062]
[1763403137249,0.38480693,132.49,132.37,3.45]
[1763403137442,0.05675462,132.44,132.37,3.45]
[1763403137846,0.05675462,132.44,132.39,3.4]
[1763403138043,0.05098581,132.43,132.39,3.4]
[1763403138352,9.04576851,132.5,132.4,3.4]
[1763403139145,0.05224298,132.46,132.44,0.05098581]
[1763403139341,0.05224298,132.46,132.44,3.45098581]
[1763403140541,0.05224298,132.46,132.44,0.05098581]
[1763403140746,0.05224298,132.46,132.44,3.45098581]
[1763403141248,0.05224298,132.46,132.44,0.05098581]
[1763403142453,0.05224298,132.46,132.44,3.45098581]
[1763403143050,9.04576851,132.52,132.44,3.45098581]
[1763403143244,8.79903966,132.5,132.44,3.4]
[1763403143553,0.43,132.44,132.37,8.17]
[1763403143852,0.43,132.41,132.37,8.17]
[1763403144056,0.05547828,132.4,132.38,0.05277592]
[1763403144649,0.48547828,132.4,132.38,0.05277592]
[1763403145455,0.05547828,132.4,132.38,0.05277592]
[1763403145653,0.05547828,132.4,132.38,3.45277592]
[1763403145859,8.79903966,132.39,132.35,7.5]
[1763403146051,8.36903966,132.39,132.35,7.5]
[1763403146247,0.43,132.38,132.35,7.5]
[1763403146750,0.05547828,132.4,132.36,3.4]
[1763403146945,0.05547828,132.4,132.37,0.0482899]
[1763403147357,0.48547828,132.4,132.37,0.0482899]
[1763403147547,0.05547828,132.4,132.37,0.0482899]
[1763403147752,0.05547828,132.4,132.37,3.4482899]
[1763403148352,5.53828027,132.39,132.37,3.4482899]
[1763403148548,5.53981666,132.43,132.37,3.4482899]
[1763403148862,5.53981666,132.42,132.38,3.4]
[1763403149057,5.53981666,132.41,132.38,3.4]
[1763403149252,5.53981666,132.4,132.36,3.4]
[1763403149456,5.53981666,132.39,132.36,3.4]
[1763403149654,5.53981666,132.38,132.37,0.04816829]
[1763403150561,5.53981666,132.38,132.37,3.44816829]
[1763403150747,5.53981666,132.38,132.37,0.04816829]
[1763403150952,5.96981666,132.38,132.37,0.04816829]
[1763403154362,5.53981666,132.38,132.37,0.04816829]
[1763403156958,9.04314919,132.44,132.38,3.29]
[1763403157257,21.58483138,132.46,132.38,3.29]
[1763403157258,9.04314919,132.45,132.38,3.29]
[1763403157459,3.24,132.44,132.35,7.5]
[1763403157766,3.24,132.41,132.35,7.5]
[1763403158066,0.05159018,132.39,132.37,3.34117319]
[1763403159958,0.05159018,132.39,132.38,3.29]
[1763403160359,0.05159018,132.39,132.37,0.05117319]
[1763403160561,0.05159018,132.39,132.37,3.34117319]
[1763403163561,0.05159018,132.39,132.37,0.05117319]
[1763403163768,0.05159018,132.39,132.37,3.34117319]
[1763403165064,0.05159018,132.39,132.37,0.05117319]
[1763403165263,3.29159018,132.39,132.35,7.5]
[1763403165467,3.29159018,132.39,132.26,48.82]
[1763403165468,3.24,132.35,132.26,11.43]
[1763403165663,3.24,132.33,132.26,11.43]
[1763403166170,40.01256677,132.34,132.27,3.29]
[1763403166171,34.88352711,132.34,132.27,3.29]
[1763403166473,34.88352711,132.34,132.26,8.14]
[1763403166474,3.24,132.27,132.26,5.74495489]
[1763403166664,3.24,132.27,132.15,3.29]
[1763403166968,3.24,132.27,132.11,8.36903966]
[1763403166969,34.87643065,132.2,132.11,3.29]
[1763403167170,22.61,132.19,132.11,3.29]
[1763403167364,3.24,132.18,132.07,3.29]
[1763403167559,0.05317496,132.14,132.11,0.05106503]
[1763403169163,5.50504756,132.13,132.11,0.05106503]
[1763403170063,5.50504756,132.12,132.11,0.05106503]
[1763403170369,5.55822252,132.14,132.11,3.34106503]
[1763403170667,0.05317496,132.14,132.11,3.34106503]
[1763403171169,0.05317496,132.14,132.11,0.05106503]
[1763403171170,3.29317496,132.14,132.11,0.05106503]
[1763403171371,8.74504756,132.13,132.11,0.05106503]
[1763403171568,5.50504756,132.13,132.11,0.05106503]
[1763403171968,5.55822252,132.14,132.11,3.34106503]
[1763403172269,0.05317496,132.14,132.11,3.34106503]
[1763403172766,5.50504756,132.19,132.13,3.29]
[1763403172965,3.24,132.21,132.13,3.29]
[1763403173157,9.02643065,132.26,132.05,7.48]
[1763403173158,8.74504756,132.2,132.09,3.29]
[1763403173359,5.50504756,132.19,132.09,3.29]
[1763403173565,3.24,132.2,132.13,3.34014583]
[1763403173566,5.50504756,132.2,132.13,3.34014583]
[1763403173771,5.50504756,132.22,132.13,3.34014583]
[1763403173974,5.50504756,132.21,132.13,3.29]
[1763403174159,5.50504756,132.22,132.13,3.29]
[1763403174362,8.74504756,132.21,132.13,3.29]
[1763403174563,3.24,132.19,132.09,11.65903966]
[1763403174760,8.74504756,132.18,132.09,3.29]
[1763403174964,0.05176878,132.15,132.13,0.05161364]
[1763403175367,0.05176878,132.15,132.13,3.34161364]
[1763403175671,5.50504756,132.2,132.14,1.52]
[1763403175873,8.71426228,132.24,132.15,3.29]
[1763403176075,8.71426228,132.23,132.15,3.29]
[1763403176265,5.47426228,132.22,132.15,3.29]
[1763403176470,5.47426228,132.21,132.15,3.29]
[1763403176773,0.04807363,132.19,132.17,0.04815948]
[1763403176974,3.2903714,132.19,132.17,0.05117153]
[1763403177479,8.71426228,132.18,132.17,0.05117153]
[1763403177683,3.24,132.17,132.05,7.48]
[1763403177866,3.24,132.13,132.05,10.77]
[1763403178064,5.47426228,132.12,132.05,10.77]
[1763403178270,8.36903966,132.11,132.05,10.77]
[1763403178776,0.05480102,132.09,132.07,0.04825837]
[1763403179276,3.29480102,132.09,132.07,0.04825837]
[1763403180169,0.05480102,132.09,132.07,3.33825837]
[1763403180371,0.05480102,132.09,132.07,0.04825837]
[1763403180372,3.29480102,132.09,132.07,0.04825837]
[1763403180571,0.05480102,132.09,132.07,0.04825837]
[1763403180775,0.05480102,132.09,132.07,3.33825837]
[1763403180964,5.43891428,132.14,132.08,3.29]
[1763403181167,3.24,132.16,132.08,3.29]
[1763403181870,0.05614958,132.13,132.11,3.34043705]
[1763403182070,0.05614958,132.13,132.11,0.05043705]
[1763403182469,3.29614958,132.13,132.11,0.05043705]
[1763403182771,3.29614958,132.13,132.05,7.48]